bitfinex-derivatives/quotes_ETHF0:USTF0_20250501
["timestamp","ask_amount","ask_price","bid_price","bid_amount"]
[1746105980602,6.54408,1849.2,1849.1,40.8]
[1746105982612,6.54408,1849.2,1849.1,41.88144]
[1746105983607,6.54408,1849.2,1849.1,40.8]
[1746105985407,12.42008,1849.2,1849.1,40.8]
[1746105985611,17.25,1849.2,1848.7,9.6466]
[1746105985912,1.08162,1848.8,1848.7,12.38495]
[1746105986101,1.08162,1848.8,1848.7,53.18495]
[1746105987206,1.08156,1849.0,1848.9,1.08153]
[1746105987812,1.08156,1848.9,1848.8,2.73826]
[1746105988613,1.08156,1848.9,1848.8,1.6567]
[1746105989108,4.86956,1848.9,1848.8,1.6567]
[1746105989610,4.86956,1848.9,1848.8,2.73832]
[1746105989914,4.86956,1848.9,1848.8,1.6567]
[1746105990211,1.08156,1848.9,1848.8,1.6567]
[1746105993007,2.66206,1848.9,1848.8,1.6567]
[1746105993209,6.45006,1848.9,1848.8,1.6567]
[1746105993815,6.45006,1848.9,1848.8,2.73832]
[1746105995908,6.45006,1848.9,1848.8,1.6567]
[1746105996214,6.45006,1848.9,1848.7,51.52822]
[1746105996215,1.08162,1848.8,1848.7,40.8]
[1746105996408,5.68112,1848.8,1848.7,40.8]
[1746105997113,9.46912,1848.8,1848.7,41.88167]
[1746105997313,9.46912,1848.8,1848.7,43.57967]
[1746105998909,6.49692,1848.8,1848.7,43.57967]
[1746105999114,2.70892,1848.8,1848.7,45.01677]
[1746106000111,1.0816,1848.9,1848.8,1.08162]
[1746106000311,1.0816,1848.9,1848.8,2.66662]
[1746106000513,2.7073,1848.9,1848.8,2.66662]
[1746106001317,10.09063323,1848.9,1848.8,2.66662]
[1746106001620,10.09063323,1848.9,1848.8,1.585]
[1746106001919,10.09063323,1848.9,1848.8,2.66662]
[1746106003818,10.09063323,1848.9,1848.8,4.05162]
[1746106004017,10.09063323,1848.9,1848.8,2.97]
[1746106004521,10.09063323,1848.9,1848.8,4.05162]
[1746106005225,10.09063323,1848.9,1848.8,2.97]
[1746106005622,10.09063323,1848.9,1848.8,4.05162]
[1746106006817,1.08162,1848.8,1848.7,40.8]
[1746106007021,1.08197,1848.2,1848.1,3.2078]
[1746106007317,1.08203,1848.1,1847.9,13.95873145]
[1746106007517,4.10523,1848.1,1848.0,47.96728763]
[1746106007725,5.53923,1848.1,1848.0,7.16728763]
[1746106008118,9.32723,1848.1,1848.0,7.16728763]
[1746106008722,4.87003,1848.1,1848.0,8.24936763]
[1746106009020,4.87003,1848.1,1848.0,10.20348763]
[1746106009221,2.71413,1848.1,1848.0,7.16728763]
[1746106010119,6.50213,1848.1,1848.0,7.16728763]
[1746106012428,9.70993,1848.1,1848.0,7.16728763]
[1746106012629,15.58593,1848.1,1848.0,7.16728763]
[1746106013631,12.37813,1848.1,1848.0,7.16728763]
[1746106014532,9.664,1848.1,1847.9,2.80944]
[1746106014826,9.664,1848.1,1848.0,6.01718]
[1746106015029,9.664,1848.1,1848.0,4.9351]
[1746106015217,3.59533323,1848.2,1848.1,1.08203]
[1746106015420,3.59533323,1848.2,1848.1,4.26483]
[1746106021736,1.6502,1848.4,1848.1,4.26483]
[1746106021939,1.6502,1848.4,1848.3,1.08191]
[1746106022637,2.73209,1848.4,1848.2,5.89614]
[1746106022834,1.6502,1848.4,1848.1,1.4555]
[1746106023140,1.6502,1848.4,1848.0,3.2078]
[1746106023141,1.08199,1848.2,1848.0,2.68846]
[1746106023339,1.6087,1848.1,1848.0,5.89626]
[1746106026043,6.15142,1848.5,1848.0,7.51941]
[1746106026242,2.69915,1848.4,1848.3,1.08191]
[1746106026442,1.6173,1848.4,1848.3,2.80061]
[1746106027338,2.69915,1848.4,1848.3,2.80061]
[1746106027541,2.69915,1848.4,1848.3,1.7187]
[1746106028238,2.69915,1848.4,1848.2,2.60542]
[1746106028439,2.65971,1848.3,1848.2,2.60542]
[1746106029758,1.5778,1848.3,1848.2,2.60542]
[1746106030050,7.68554,1848.5,1848.4,1.08185]
[1746106030250,1.5778,1848.3,1848.2,1.08197]
[1746106031157,5.71254,1848.5,1848.4,1.08185]
[1746106032059,4.6307,1848.5,1848.4,1.08185]
[1746106032261,5.71249,1848.5,1848.4,1.08185]
[1746106033660,4.6307,1848.5,1848.4,1.08185]
[1746106033861,5.71249,1848.5,1848.4,1.08185]
[1746106034153,16.27813323,1848.6,1848.5,1.08179]
[1746106034154,3.59533323,1848.6,1848.5,1.08179]
[1746106034358,3.59533323,1848.6,1848.5,10.68599]
[1746106034958,3.59533323,1848.6,1848.5,5.68599]
[1746106035658,5.26633323,1848.8,1848.7,1.08167]
[1746106036354,3.59533323,1848.8,1848.7,2.66837]
[1746106037961,3.59533323,1848.8,1848.7,43.46837]
[1746106039164,8.5301882,1848.9,1848.8,1.08162]
[1746106039165,3.8089882,1848.9,1848.8,1.08162]
[1746106039466,2.5348482,1848.9,1848.8,5.85772]
[1746106039665,1.4034682,1848.9,1848.8,10.85772]
[1746106040059,1.4034682,1848.9,1848.8,55.44572]
[1746106040563,1.4034682,1848.9,1848.8,55.82272547]
[1746106040760,8.81323741,1849.4,1849.3,1.08132]
[1746106042869,9.89449741,1849.4,1849.3,1.08132]
[1746106044066,8.81323741,1849.4,1849.3,1.08132]
[1746106044264,7.20293741,1849.4,1849.3,6.37132]
[1746106044460,7.20293741,1849.4,1849.3,9.28022]
[1746106044862,7.20293741,1849.4,1849.3,50.08022]
[1746106045866,3.1582,1849.7,1849.4,1.08126]
[1746106046062,3.1582,1849.7,1849.4,2.79916]
[1746106046264,3.1582,1849.7,1849.5,1.08121]
[1746106046265,1.7231,1849.6,1849.5,1.08121]
[1746106046660,1.5184,1849.7,1849.6,1.08115]
[1746106046860,1.5184,1849.7,1849.6,4.28895]
[1746106047056,1.5184,1849.7,1849.6,1.08115]
[1746106047269,3.2415,1849.7,1849.6,1.08115]
[1746106047456,3.2415,1849.7,1849.6,4.28895]
[1746106049270,4.32259,1849.7,1849.6,1.08115]
[1746106049468,1.08119,1849.6,1849.3,40.8]
[1746106049659,1.433,1849.5,1849.4,1.08126]
[1746106050062,3.1038,1849.5,1849.4,1.08126]
[1746106050271,6.8918,1849.5,1849.4,1.08126]
[1746106051169,3.1038,1849.5,1849.4,1.08126]
[1746106052668,3.1038,1849.5,1849.4,2.74226]
[1746106055978,3.1038,1849.5,1849.4,5.95006]
[1746106057585,3.1038,1849.5,1849.4,4.28906]
[1746106057878,4.18501,1849.5,1849.4,1.08126]
[1746106058074,3.1038,1849.5,1849.4,1.08126]
[1746106059183,7.97301,1849.5,1849.4,1.08126]
[1746106060184,6.8918,1849.5,1849.4,1.08126]
[1746106061380,7.3944,1849.7,1849.6,1.08115]
[1746106061581,2.9359,1849.7,1849.6,1.08115]
[1746106063075,1.08115,1849.6,1849.5,1.08116]
[1746106063376,2.64975,1849.6,1849.5,1.08116]
[1746106065880,1.08123,1849.5,1849.4,1.08121]
[1746106066086,1.08126,1849.4,1849.3,45.08907]
[1746106066384,1.4768,1849.4,1849.3,45.08912]
[1746106066786,3.1522,1849.4,1849.3,45.08912]
[1746106067086,4.23346,1849.4,1849.3,40.8]
[1746106067282,8.02146,1849.4,1849.3,40.8]
[1746106067686,8.02146,1849.4,1849.3,41.88132]
[1746106068188,8.02146,1849.4,1849.3,40.8]
[1746106068686,8.02146,1849.4,1849.3,41.88132]
[1746106069587,8.02146,1849.4,1849.3,40.8]
[1746106069984,8.02146,1849.4,1849.3,41.88132]
[1746106070285,8.02146,1849.4,1849.3,40.8]
[1746106070588,8.02146,1849.4,1849.3,41.88132]
[1746106072591,8.02146,1849.4,1849.3,40.8]
[1746106072789,3.788,1849.4,1849.3,45.08912]
[1746106073192,7.4665,1849.6,1849.5,1.08121]
[1746106073688,8.54765,1849.6,1849.5,1.08121]
[1746106074390,7.4665,1849.6,1849.5,1.08121]
[1746106074794,5.876,1849.6,1849.5,1.08121]
[1746106075396,1.5933,1849.8,1849.7,1.08109]
[1746106075693,4.6829,1849.9,1849.8,1.08103]
[1746106075891,1.4751,1849.9,1849.8,4.28883]
[1746106076083,2.55607,1849.9,1849.8,1.08103]
[1746106076286,3.0684,1849.9,1849.8,1.08103]
[1746106076487,4.14937,1849.9,1849.8,1.08103]
[1746106077399,3.0684,1849.9,1849.8,1.08103]
[1746106077799,7.375,1850.1,1849.8,3.2078]
[1746106078092,10.06529,1850.1,1850.0,1.08091]
[1746106078294,8.45589,1850.1,1850.0,1.08091]
[1746106079099,7.375,1850.1,1850.0,1.08091]
[1746106079392,5.287,1850.1,1850.0,1.08091]
[1746106079800,3.788,1850.1,1850.0,1.08091]
[1746106079999,3.788,1850.1,1850.0,4.31331]
[1746106080297,3.788,1850.1,1849.9,1.5365]
[1746106080298,1.08097,1849.9,1849.8,3.2078]
[1746106080496,1.08095,1850.0,1849.8,4.28877]
[1746106080693,1.4545,1849.9,1849.8,4.28877]
[1746106080895,1.4545,1849.9,1849.8,5.98857]
[1746106082196,2.53547,1849.9,1849.8,5.98857]
[1746106082402,2.53547,1849.9,1849.8,4.28877]
[1746106082798,1.4545,1849.9,1849.8,4.28877]
[1746106083102,2.53547,1849.9,1849.8,5.86047]
[1746106083303,2.9645,1849.9,1849.8,5.86047]
[1746106083498,1.08115,1849.6,1849.5,7.88398]
[1746106083705,1.08126,1849.5,1849.4,1.08124]
[1746106083898,2.60806,1849.5,1849.4,1.08124]
[1746106084204,1.08126,1849.4,1849.3,40.8]
[1746106085195,4.86926,1849.4,1849.3,40.8]
[1746106086803,5.55880115,1849.4,1849.3,40.8]
[1746106087504,8.76660115,1849.4,1849.3,40.8]
[1746106087801,8.76660115,1849.4,1849.3,41.88132]
[1746106088399,8.76660115,1849.4,1849.3,40.8]
[1746106089101,8.07706,1849.4,1849.3,40.8]
[1746106089998,1.08138,1849.2,1849.1,1.08144]
[1746106090203,8.57937,1849.3,1848.9,3.2078]
[1746106090405,1.0815,1849.0,1848.9,45.08931]
[1746106090604,1.0815,1849.0,1848.9,43.55821]
[1746106090804,1.0815,1849.0,1848.9,46.76601]
[1746106091004,1.0815,1849.0,1848.9,42.4767]
[1746106091298,1.0815,1849.0,1848.9,40.8]
[1746106091895,2.70393,1848.9,1848.5,12.18418763]
[1746106092095,1.08173,1848.6,1848.5,13.76238763]
[1746106092297,1.08173,1848.6,1848.5,54.56238763]
[1746106092601,10.16553,1848.6,1848.5,7.16728763]
[1746106093406,10.16553,1848.6,1848.4,40.8]
[1746106093407,1.08179,1848.5,1848.4,40.8]
[1746106093809,1.08191,1848.3,1848.2,7.16728763]
[1746106094202,4.86991,1848.3,1848.2,7.16728763]
[1746106094401,4.86991,1848.3,1848.2,49.04925763]
[1746106094704,4.86991,1848.3,1848.2,47.96728763]
[1746106096208,1.08191,1848.3,1848.2,47.96728763]
[1746106096506,1.08191,1848.3,1848.2,7.16728763]
[1746106096714,4.28971,1848.3,1848.2,7.16728763]
[1746106097012,10.16571,1848.3,1848.2,7.16728763]
[1746106097308,13.95371,1848.3,1848.2,7.16728763]
[1746106098109,15.35091,1848.3,1848.2,7.16728763]
[1746106098510,1.08203,1848.1,1848.0,40.8]
[1746106099206,1.0822,1847.8,1847.7,6.8018]
[1746106099411,1.0822,1847.8,1847.7,3.2078]
[1746106099605,1.0822,1847.8,1847.7,40.8]
[1746106099805,1.0822,1847.8,1847.7,41.88226]
[1746106100005,1.0822,1847.8,1847.7,43.56916]
[1746106100205,1.0822,1847.8,1847.7,50.56496]
[1746106100911,3.2078,1848.1,1847.8,2.70551]
[1746106101214,4.28985,1848.1,1848.0,1.08208]
[1746106101510,4.28974,1848.3,1848.2,1.08197]
[1746106101914,1.08197,1848.2,1848.1,2.65878]
[1746106103624,1.08189,1848.4,1848.3,1.0819]
[1746106104421,1.08189,1848.4,1848.3,5.7107]
[1746106104814,1.08179,1848.5,1848.4,1.08183]
[1746106105009,1.08179,1848.5,1848.4,2.79383]
[1746106105521,1.08179,1848.5,1848.4,1.712]
[1746106105720,2.82129,1848.5,1848.4,1.712]
[1746106106515,2.82129,1848.5,1848.4,2.79385]
[1746106107122,2.82129,1848.5,1848.4,1.712]
[1746106107516,1.7395,1848.5,1848.2,4.28973]
[1746106107715,1.08191,1848.3,1848.2,5.92933]
[1746106108423,1.08191,1848.3,1848.2,1.6396]
[1746106108625,2.53401,1848.3,1848.2,1.6396]
[1746106108817,1.08203,1848.1,1848.0,1.3995]
[1746106109123,1.08203,1848.1,1848.0,2.48158]
[1746106110124,1.08203,1848.1,1848.0,1.08208]
[1746106110326,1.08208,1848.0,1847.9,4.28992]
[1746106110621,2.67778,1848.0,1847.9,5.98252]
[1746106111020,1.5957,1848.0,1847.9,5.98252]
[1746106111225,1.08207,1848.1,1848.0,1.08208]
[1746106111421,1.08207,1848.1,1848.0,2.77468]
[1746106114630,1.08207,1848.1,1848.0,1.6926]
[1746106114824,1.08207,1848.1,1847.8,4.67716]
[1746106114825,1.08214,1847.9,1847.8,4.67716]
[1746106115229,1.08214,1847.9,1847.8,6.36496]
[1746106120033,1.08214,1847.9,1847.8,5.2828]
[1746106120221,1.08214,1847.9,1847.8,1.6878]
[1746106120533,1.0822,1847.8,1847.7,40.8]
[1746106121028,1.0822,1847.8,1847.7,41.88226]
[1746106121225,1.0822,1847.8,1847.7,43.50836]
[1746106121533,1.0822,1847.8,1847.7,40.8]
[1746106122831,3.2078,1848.1,1847.7,40.8]
[1746106123031,4.6624,1848.8,1848.0,3.2078]
[1746106123331,5.35629367,1848.9,1848.7,1.08164]
[1746106123533,7.07179367,1848.9,1848.8,3.2078]
[1746106123733,8.15336367,1848.9,1848.8,45.08942]
[1746106124035,7.07179367,1848.9,1848.8,45.08942]
[1746106124528,8.15335367,1848.9,1848.8,44.0078]
[1746106125123,15.14915367,1848.9,1848.8,40.8]
[1746106125437,1.08177,1848.6,1848.4,2.67101]
[1746106125824,2.81209,1848.5,1848.4,1.5892]
[1746106126026,1.7303,1848.5,1848.4,2.67105]
[1746106126226,1.7303,1848.5,1848.4,43.47105]
[1746106126836,1.7303,1848.5,1848.4,41.88185]
[1746106128037,1.4296,1848.6,1848.5,1.08179]
[1746106128234,6.78829367,1848.7,1848.6,1.08173]
[1746106128732,8.51449367,1848.7,1848.6,1.08173]
[1746106129037,14.39049367,1848.7,1848.6,1.08173]
[1746106129239,12.8222,1848.7,1848.6,1.08173]
[1746106129434,13.90387,1848.7,1848.6,1.08173]
[1746106129936,12.8222,1848.7,1848.6,1.08173]
[1746106130641,9.664,1848.7,1848.6,1.08173]
[1746106130833,9.664,1848.7,1848.6,2.47183]
[1746106131240,5.876,1848.7,1848.6,2.47183]
[1746106131435,7.503,1848.7,1848.6,2.47183]
[1746106134542,5.876,1848.7,1848.6,5.67963]
[1746106134937,1.6216,1848.9,1848.8,1.08162]
[1746106137247,5.4096,1848.9,1848.8,1.08162]
[1746106138544,3.788,1848.9,1848.8,1.08162]
[1746106138746,3.788,1848.9,1848.8,2.77032]
[1746106139145,10.12864,1849.0,1848.9,1.08156]
[1746106140247,13.91664,1849.0,1848.9,1.08156]
[1746106140947,8.05961367,1849.3,1849.2,1.08138]
[1746106140948,5.35629367,1849.3,1849.2,1.08138]
[1746106141147,5.35629367,1849.3,1849.2,12.88018]
[1746106141342,5.35629367,1849.3,1849.2,7.88018]
[1746106141648,5.35629367,1849.3,1849.2,48.68018]
[1746106141838,5.35629367,1849.3,1849.2,50.33248]
[1746106142342,5.35629367,1849.3,1849.2,55.33248]
[1746106144647,5.35629367,1849.3,1849.2,50.33248]
[1746106145948,2.68783,1849.5,1849.3,1.08127]
[1746106146151,1.08132,1849.3,1849.2,40.8]
[1746106146450,1.08132,1849.3,1849.2,41.88138]
[1746106147140,6.5875,1849.3,1849.2,41.88138]
[1746106149143,5.876,1849.4,1849.3,1.08132]
[1746106149343,5.876,1849.4,1849.3,2.72642]
[1746106149551,7.2799,1849.8,1849.7,1.08109]
[1746106149849,4.5746,1849.9,1849.8,1.08103]
[1746106151049,1.3668,1849.9,1849.8,1.08103]
[1746106151251,5.1548,1849.9,1849.8,1.08103]
[1746106153345,5.1548,1849.9,1849.7,5.86885]
[1746106153550,1.08103,1849.8,1849.7,1.08105]
[1746106153751,6.23582,1849.9,1849.7,1.08105]
[1746106154155,1.08103,1849.8,1849.7,1.08105]
[1746106154358,1.08103,1849.8,1849.4,5.91084]
[1746106154359,1.08109,1849.7,1849.6,4.66711]
[1746106155155,1.08108,1849.8,1849.7,1.08109]
[1746106156360,1.08109,1849.7,1849.6,4.6671]
[1746106156557,2.55549,1849.7,1849.6,1.0811]
[1746106156946,1.4744,1849.7,1849.6,1.0811]
[1746106157152,5.876,1850.1,1850.0,1.08091]
[1746106157354,7.5468,1850.1,1850.0,1.08091]
[1746106157551,11.1643,1850.3,1850.2,1.0808]
[1746106157754,6.9591,1850.3,1850.2,1.0808]
[1746106157947,8.03984,1850.3,1850.2,1.0808]
[1746106158147,3.1711,1850.3,1850.2,1.0808]
[1746106158850,1.6708,1850.3,1850.2,4.2886]
[1746106159052,1.4744,1850.4,1850.3,1.08074]
[1746106159264,3.1321,1850.4,1850.3,1.08074]
[1746106159554,1.6577,1850.4,1850.3,1.08074]
[1746106159754,1.6577,1850.4,1850.3,2.67994]
[1746106160058,7.3054,1850.5,1850.4,1.08068]
[1746106160259,7.01399367,1850.6,1850.5,1.08062]
[1746106160756,7.01399367,1850.6,1850.5,2.67982]
[1746106161561,5.35629367,1850.6,1850.5,2.67982]
[1746106161762,5.35629367,1850.6,1850.5,44.95302]
[1746106161962,5.876,1850.8,1850.7,1.08051]
[1746106162259,1.6445,1851.0,1850.9,1.08039]
[1746106162661,1.6445,1851.0,1850.9,41.88039]
[1746106164658,2.72483,1851.0,1850.9,40.8]
[1746106164855,2.72483,1851.0,1850.9,41.88039]
[1746106165051,2.72483,1851.0,1850.9,40.8]
[1746106165363,7.72483,1851.0,1850.9,40.8]
[1746106165561,1.08045,1850.8,1850.7,1.08049]
[1746106166063,9.664,1850.8,1850.7,40.8]
[1746106166363,1.08068,1850.4,1850.3,1.08069]
[1746106166566,5.88801,1850.7,1850.4,1.08067]
[1746106166861,1.08068,1850.5,1850.4,1.08067]
[1746106167262,1.7114,1850.5,1850.4,1.08067]
[1746106167562,1.7114,1850.5,1850.4,45.08847]
[1746106167763,3.788,1850.7,1850.6,1.08056]
[1746106167965,5.876,1850.8,1850.7,1.08051]
[1746106168161,5.876,1851.1,1851.0,1.08033]
[1746106168758,5.876,1851.1,1850.7,6.6508]
[1746106168963,5.876,1851.1,1851.0,1.08033]
[1746106169564,5.876,1851.1,1850.9,2.66265]
[1746106169759,5.876,1851.1,1850.9,3.584]
[1746106170068,6.95632,1851.1,1850.9,1.08038]
[1746106170260,3.788,1851.1,1850.9,1.08038]
[1746106170463,3.788,1851.1,1851.0,4.66433]
[1746106171160,4.7967,1851.4,1851.2,1.08018]
[1746106171361,4.7967,1851.4,1851.3,1.08015]
[1746106171563,3.2078,1851.4,1851.1,3.2167]
[1746106171867,2.8343,1851.5,1851.4,1.0801]
[1746106172267,4.4232,1851.5,1851.4,1.0801]
[1746106172458,4.4232,1851.5,1851.4,2.8074]
[1746106173062,4.28777,1851.7,1851.6,1.07998]
[1746106173265,5.876,1851.7,1851.5,2.80731]
[1746106173561,5.876,1851.7,1851.6,1.07998]
[1746106173765,6.95592,1851.7,1851.6,1.07998]
[1746106173959,7.5092,1851.7,1851.6,41.87998]
[1746106174566,5.876,1851.7,1851.6,41.87998]
[1746106174967,7.5092,1851.7,1851.6,41.87998]
[1746106175162,3.56374198,1851.9,1851.8,1.07986]
[1746106175566,5.19694198,1851.9,1851.8,1.07986]
[1746106175756,5.19694198,1851.9,1851.8,41.87986]
[1746106176369,3.56374198,1851.9,1851.8,41.87986]
[1746106176666,5.19694198,1851.9,1851.8,41.87986]
[1746106177070,7.2359,1852.0,1851.9,1.0798]
[1746106177272,7.2359,1852.0,1851.9,2.6932]
[1746106177471,5.876,1852.0,1851.9,2.6932]
[1746106177865,2.45963,1852.3,1852.1,1.07965]
[1746106178063,3.0608,1852.3,1852.2,1.07963]
[1746106178775,4.14037,1852.3,1852.1,1.07965]
[1746106178963,4.14037,1852.3,1852.1,2.69305]
[1746106179272,4.14037,1852.3,1852.1,1.6134]
[1746106179570,3.0608,1852.3,1852.2,1.07963]
[1746106179759,4.14037,1852.3,1852.2,1.07963]
[1746106180168,1.07963,1852.2,1852.1,1.6134]
[1746106180369,1.07975,1852.0,1851.9,1.07976]
[1746106180567,1.07973,1852.1,1852.0,1.07975]
[1746106180963,1.6922,1852.2,1851.9,2.79677]
[1746106181171,1.07975,1852.0,1851.9,1.717]
[1746106181672,1.6922,1852.2,1851.9,1.717]
[1746106181969,1.07975,1852.0,1851.9,2.79678]
[1746106182169,1.6922,1852.2,1851.9,1.717]
[1746106182373,2.77187,1852.2,1852.1,1.07969]
[1746106182766,1.07969,1852.1,1852.0,1.0797]
[1746106183065,2.67909,1852.1,1852.0,1.0797]
[1746106183472,1.5994,1852.1,1852.0,1.0797]
[1746106183765,1.5994,1852.1,1851.9,1.717]
[1746106183972,1.07978,1852.0,1851.9,1.07975]
[1746106184774,1.5994,1852.1,1851.8,46.0441]
[1746106185066,2.67914,1852.1,1852.0,1.07975]
[1746106185270,2.67914,1852.1,1851.8,46.0441]
[1746106185271,1.07975,1852.0,1851.9,2.74386]
[1746106185470,2.67913,1852.1,1852.0,1.07975]
[1746106185874,1.07975,1852.0,1851.9,2.74386]
[1746106186076,2.68585,1852.0,1851.9,2.74386]
[1746106186572,1.0798,1851.9,1851.8,40.8]
[1746106186766,4.0848,1851.9,1851.8,41.87986]
[1746106186968,4.0848,1851.9,1851.8,40.8]
[1746106187474,4.0848,1851.9,1851.8,41.87986]
[1746106187772,4.0848,1851.9,1851.8,40.8]
[1746106188474,2.57646,1852.0,1851.9,1.0798]
[1746106188675,1.4967,1852.0,1851.9,2.6579]
[1746106188874,2.57645,1852.0,1851.9,2.6579]
[1746106189470,2.57645,1852.0,1851.9,1.5781]
[1746106189774,2.57645,1852.0,1851.9,2.6579]
[1746106190566,1.4967,1852.0,1851.9,2.6579]
[1746106190775,2.57645,1852.0,1851.9,2.6579]
[1746106190976,1.4967,1852.0,1851.9,2.6579]
[1746106191277,2.57645,1852.0,1851.9,2.6579]
[1746106191475,2.57645,1852.0,1851.9,1.0798]
[1746106191775,1.4967,1852.0,1851.9,1.0798]
[1746106191965,1.4967,1852.0,1851.9,2.7546]
[1746106193377,2.70213,1852.1,1852.0,1.07975]
[1746106193579,2.70213,1852.1,1852.0,2.75455]
[1746106194279,1.6224,1852.1,1852.0,2.75455]
[1746106194478,2.70209,1852.1,1852.0,2.75455]
[1746106195478,1.6224,1852.1,1852.0,2.75455]
[1746106195983,2.59668,1852.2,1852.1,1.07969]
[1746106196277,4.33228,1852.2,1852.1,2.72959]
[1746106196467,3.2526,1852.2,1852.1,2.72959]
[1746106196980,2.52781,1852.3,1852.2,1.07963]
[1746106197280,2.52781,1852.3,1852.2,2.72953]
[1746106197281,1.4482,1852.3,1852.2,2.72953]
[1746106197479,2.52777,1852.3,1852.2,2.72953]
[1746106197979,2.52777,1852.3,1852.2,1.07963]
[1746106197980,2.52783,1852.3,1852.2,1.07963]
[1746106198184,4.10473,1852.3,1852.2,1.07963]
[1746106198478,1.07963,1852.2,1852.1,2.69793]
[1746106198677,2.65653,1852.2,1852.1,2.69793]
[1746106199277,1.5769,1852.2,1852.1,2.69793]
[1746106199481,2.52782,1852.3,1852.2,1.07963]
[1746106199780,2.52782,1852.3,1852.2,2.69793]
[1746106199978,4.10472,1852.3,1852.2,2.69793]
[1746106200179,3.0251,1852.3,1852.2,2.69793]
[1746106200775,4.10467,1852.3,1852.2,2.69793]
[1746106201084,3.0251,1852.3,1851.9,1.4446]
[1746106201385,1.4482,1852.3,1852.2,1.07963]
[1746106201575,4.1267,1852.5,1852.4,1.07951]
[1746106202273,1.07957,1852.4,1852.3,1.07956]
[1746106202468,1.07963,1852.3,1852.2,1.0796]
[1746106202674,1.07969,1852.1,1852.0,2.71033]
[1746106202884,2.69934,1852.1,1851.8,41.87981]
[1746106203082,1.4418,1852.2,1852.0,1.07969]
[1746106203383,5.54306,1852.2,1852.1,1.07969]
[1746106203587,1.07975,1852.0,1851.9,2.71034]
[1746106203981,1.608,1852.1,1852.0,1.07975]
[1746106204181,1.07969,1852.1,1852.0,4.2791]
[1746106204384,5.51356,1852.2,1852.1,1.07969]
[1746106204781,1.07966,1852.2,1852.1,1.7208]
[1746106205085,1.07966,1852.2,1851.8,41.87985]
[1746106205086,1.0798,1851.9,1851.8,41.87985]
[1746106205287,1.0798,1851.9,1851.8,40.8]
[1746106206084,7.21772,1852.1,1851.7,7.62839]
[1746106206278,7.21772,1852.1,1852.0,1.07975]
[1746106206479,4.7188,1852.1,1852.0,41.87975]
[1746106206681,3.2078,1852.1,1852.0,41.87975]
[1746106206881,3.788,1852.2,1852.1,1.07969]
[1746106207081,1.07966,1852.2,1852.1,1.07961]
[1746106207385,1.07969,1852.1,1852.0,40.8]
[1746106207573,8.82169,1852.1,1852.0,40.8]
[1746106207973,1.07992,1851.8,1851.6,1.4831]
[1746106208181,1.07983,1851.9,1851.8,1.0798]
[1746106208380,2.73578,1852.0,1851.9,1.0798]
[1746106208589,2.73575,1852.0,1851.9,1.5676]
[1746106208791,1.0798,1851.9,1851.8,40.8]
[1746106208979,1.07992,1851.7,1851.6,1.4831]
[1746106209185,1.07998,1851.6,1851.5,2.64762]
[1746106209383,1.07998,1851.6,1851.5,1.5676]
[1746106209590,1.0802,1851.3,1851.0,8.2722]
[1746106209891,2.7001,1851.5,1851.1,1.5676]
[1746106209892,1.08021,1851.2,1851.1,1.5676]
[1746106210185,1.08039,1850.9,1850.8,7.16728763]
[1746106210778,1.08039,1850.9,1850.8,7.87837763]
[1746106210779,4.28819,1850.9,1850.8,7.87837763]
[1746106210986,5.85469,1850.9,1850.8,7.87837763]
[1746106211191,10.0682776,1850.9,1850.8,7.87837763]
[1746106211391,6.8604776,1850.9,1850.8,7.87837763]
[1746106211683,10.0682776,1850.9,1850.8,7.87837763]
[1746106211886,15.0682776,1850.9,1850.8,0.88951763]
[1746106212084,1.08045,1850.8,1850.7,9.58186145]
[1746106212283,3.0725376,1850.8,1850.7,4.03127145]
[1746106212482,8.07180418,1850.8,1850.7,2.80328145]
[1746106212686,8.07180418,1850.8,1850.7,1.45e-06]
[1746106212987,1.08051,1850.7,1850.6,12.50524672]
[1746106213183,1.08062,1850.5,1850.4,7.11151909]
[1746106213388,1.08068,1850.4,1850.3,11.44081693]
[1746106213692,1.08068,1850.4,1849.6,2.80563]
[1746106213693,1.08104,1849.8,1849.6,2.80562]
[1746106213991,4.65994,1850.0,1849.9,14.76604672]
[1746106214186,0.42485418,1850.0,1849.9,17.57151672]
[1746106214584,1.50576418,1850.0,1849.9,16.49054672]
[1746106214781,0.42485418,1850.0,1849.9,16.49054672]
[1746106214979,1.50576418,1850.0,1849.9,16.49054672]
[1746106215583,0.42485418,1850.0,1849.6,1.4291]
[1746106215783,0.42485418,1849.9,1849.7,1.7245]
[1746106215991,4.28867,1850.1,1850.0,14.76604672]
[1746106216191,3.2078,1850.1,1850.0,15.84695672]
[1746106216395,3.63034556,1850.1,1850.0,15.84695672]
[1746106216691,0.42254556,1850.1,1850.0,15.84695672]
[1746106217087,0.42254556,1850.1,1850.0,14.76604672]
[1746106217288,0.42254556,1850.1,1849.9,1.6419]
[1746106217289,1.08091,1850.0,1849.9,1.6419]
[1746106217893,3.13125556,1850.0,1849.9,1.6419]
[1746106218297,1.08097,1849.9,1849.8,40.8]
[1746106218496,3.13131556,1849.9,1849.8,40.8]
[1746106218894,6.33911556,1849.9,1849.8,40.8]
[1746106219092,10.12711556,1849.9,1849.8,40.8]
[1746106220201,8.49931556,1849.9,1849.8,40.8]
[1746106220403,7.41834556,1849.9,1849.8,56.64707672]